Cogmind - Beta 13 @@@ ROGUE MODE // 2024.03.03 @ 03:21:15 Player: Exo Result: Destroyed by H-61 Shepherd with Heavy Assault Cannon Performance ------------- Evolutions (2) 1000 Regions Visited (6) 1200 Robots Destroyed (14) 70 Value Destroyed (246) 246 Prototype IDs (4) 80 Alien Tech Used (0) 0 Bonus (0) 0 TOTAL SCORE: 2596 Bonus ------- None Cogmind --------- Core Integrity 0/550 Matter 245/300 Energy 100/100 System Corruption 0% Temperature Cool (0) Movement Flying (245) Ox3 Location -8/Materials Parts ------- > --- POWER (1) -------- (None) > --- PROPULSION (5) --- Improved VTOL Module > --- UTILITY (2) ------ Small Storage Unit Medium Storage Unit > --- WEAPON (3) ------- Autogun > --- INVENTORY (10) --- Improved Heat Sink Compact Battery (200) Advanced Visual Processing Unit Target Analyzer Peak State ------------ > --- POWER ------------ Deuterium Engine > --- PROPULSION ------- Aluminum Leg Aluminum Leg Aluminum Leg Aluminum Leg Improved Aluminum Leg > --- UTILITY ---------- Medium Storage Unit Targeting Computer > --- WEAPON ----------- Advanced Beam Rifle Assault Rifle Enhanced Autogun > --- INVENTORY -------- Light Ion Engine Light Ion Engine Light Nuclear Core Improved Heat Sink Small Storage Unit Advanced Visual Processing Unit EM Shotgun Advanced Beam Cannon Mining Laser Mining Laser [Rating: 21] Favorites ----------- Power Light Ion Engine Engine Light Ion Engine Power Core Light Nuclear Core Propulsion Aluminum Leg Leg Aluminum Leg Wheel Compact Wheel Flight Unit Improved VTOL Module Utility Targeting Computer Storage Medium Storage Unit Processor Targeting Computer Weapon Assault Rifle Energy Gun Advanced Beam Rifle Energy Cannon Advanced Beam Cannon Ballistic Gun Assault Rifle Special Weapon Mining Laser Build | -11 -10 -9 -9 -9 -8 -8 ------- Run | Yrd Mat Mat Min Exi Min Mat Slots Evolved 4 | . . 2 . . . 2 Power . | . . . . . . . Propulsion 3 | . . 2 . . . 1 Utility . | . . . . . . . Weapon 1 | . . . . . . 1 Parts Attached 35 | 6 . 5 2 . 3 19 Power 7 | 1 . . . . 1 5 Engine 5 | 1 . . . . 1 3 Core 2 | . . . . . . 2 Reactor . | . . . . . . . Propulsion 9 | 2 . 1 2 . . 4 Treads . | . . . . . . . Leg 7 | 2 . . 2 . . 3 Wheel 1 | . . 1 . . . . Hover . | . . . . . . . Flight 1 | . . . . . . 1 Utility 4 | 1 . 2 . . . 1 Device . | . . . . . . . Storage 3 | 1 . 1 . . . 1 Processor 1 | . . 1 . . . . Hackware . | . . . . . . . Protection . | . . . . . . . Artifact . | . . . . . . . Weapon 15 | 2 . 2 . . 2 9 Energy Gun 2 | . . . . . . 2 Energy Cannon 3 | . . 1 . . 1 1 Ballistic Gun 8 | 2 . 1 . . 1 4 Ballistic Cannon . | . . . . . . . Launcher . | . . . . . . . Special Weapon 2 | . . . . . . 2 Impact Weapon . | . . . . . . . Slashing Weapon . | . . . . . . . Piercing Weapon . | . . . . . . . Special Melee Weapon . | . . . . . . . Unidentified Prototypes 4 | . . 1 . . . 3 Parts Lost 18 | . . . . . . 18 Power 4 | . . . . . . 4 Propulsion 6 | . . . . . . 6 Utility 1 | . . . . . . 1 Weapon 7 | . . . . . . 7 Highest Loss Streak 7 | . . . . . . 7 To Critical Strikes . | . . . . . . . Average Slot Usage (%) 87 | . 85 78 92 100 100 69 Engine 10 | . 14 11 11 11 11 6 Leg 34 | . 28 22 29 44 44 24 Storage 10 | . 14 11 11 11 11 9 Processor 9 | . . 10 11 11 11 8 Ballistic Gun 20 | . 28 22 22 22 21 13 Naked Turns . | . . . . . . . Heaviest Build 27 | 12 12 17 17 17 17 27 Greatest Support 53 | 20 20 20 40 40 40 53 Greatest Overweight (x) 6 | . . . . . . 6 Average Overweight (x) . | . . . . . . . Largest Inventory Capacity 10 | 8 8 10 10 10 10 10 Average Capacity 9 | 7 8 9 10 10 10 10 Most Carried 10 | 6 8 10 10 10 10 10 Average Carried 8 | 3 5 8 9 10 9 8 Final Capacity 10 | 8 8 10 10 10 10 10 Final Carried 10 | 4 7 9 10 10 10 4 Class Distribution -------------------- 88% | Mutant 6% | Gunner 5% | Scavenger-Gunner Dominant Class ---------------- Mutant | -10/Materials Mutant | -9/Materials Mutant | -9/Mines Mutant | -9/Exiles Mutant | -8/Mines Mutant | -8/Materials Resources | -11 -10 -9 -9 -9 -8 -8 ----------- Run | Yrd Mat Mat Min Exi Min Mat Matter Collected 711 | 179 55 56 76 . 96 249 Remotely . | . . . . . . . Salvage Created 357 | . 55 . . . 93 209 Parts 25 | . 7 . . . 8 10 Haulers Intercepted . | . . . . . . . Recyclers Shooed 2 | . . . . . 1 1 Parts Field Recycled . | . . . . . . . Retrieved Matter . | . . . . . . . Parts Self-Destructed . | . . . . . . . Prevented . | . . . . . . . Kills | -11 -10 -9 -9 -9 -8 -8 ------- Run | Yrd Mat Mat Min Exi Min Mat Combat Hostiles Destroyed 12 | . 3 . . . 6 3 Guns 11 | . 3 . . . 6 2 Cannons 1 | . . . . . . 1 Classes Destroyed 5 | . 1 . . . . 4 Worker 1 | . . . . . . 1 Recycler 1 | . . . . . . 1 Swarmer 9 | . 3 . . . 6 . Grunt 2 | . . . . . . 2 Hunter 1 | . . . . . . 1 Best Kill Streak 6 | . 3 . . . 6 2 Combat Bots Only 6 | . 3 . . . 6 1 Max Kills in Single Turn 1 | . 1 . . . 1 1 Gunslinging . | . . . . . . . Exploded . | . . . . . . . Melee . | . . . . . . . Uniques/NPCs Destroyed . | . . . . . . . Combat | -11 -10 -9 -9 -9 -8 -8 -------- Run | Yrd Mat Mat Min Exi Min Mat Hostile Shots Fired 216 | . 15 . . . 30 171 Missed 82 | . 4 . . . 8 70 Damage Taken 2380 | . 91 . . . 184 2105 Core 653 | . 15 . . . 59 579 Absorbed by Shields . | . . . . . . . Core Remaining (%) 93 | 100 94 . . . 85 . Volleys Fired 70 | . 6 . . . 12 52 Largest 3 | . 2 . . . 2 3 Hottest 106 | . 40 . . . 88 106 Shots Fired 123 | . 12 . . . 24 87 Gun 97 | . 12 . . . 22 63 Cannon 22 | . . . . . 2 20 Launcher . | . . . . . . . Special 4 | . . . . . . 4 Kinetic 92 | . 12 . . . 22 58 Thermal 28 | . . . . . 2 26 Explosive . | . . . . . . . Electromagnetic 3 | . . . . . . 3 Robot Hit Streak 13 | . 5 . . . 12 13 Robot Miss Streak 3 | . 2 . . . 3 3 Penetration Max . | . . . . . . . Secondary Targets 1 | . . . . . 1 . Max Gunslinging Chain 1 | . . . . . 1 . Shots Hit Robots 82 | . 6 . . . 17 59 Core Hits 23 | . 3 . . . 6 14 Critical Kills . | . . . . . . . Critical Parts Destroyed . | . . . . . . . Critical Strikes . | . . . . . . . Melee Attacks . | . . . . . . . Impact . | . . . . . . . Slashing . | . . . . . . . Piercing . | . . . . . . . Sneak Attacks . | . . . . . . . Combat Hostiles . | . . . . . . . Follow-up Attacks . | . . . . . . . Damage Inflicted 1278 | . 95 . . . 258 925 Guns 940 | . 95 . . . 238 607 Cannons 266 | . . . . . 20 246 Explosions . | . . . . . . . Melee . | . . . . . . . Ramming . | . . . . . . . Kinetic 891 | . 95 . . . 238 558 Thermal 358 | . . . . . 20 338 Explosive . | . . . . . . . Electromagnetic 29 | . . . . . . 29 Impact . | . . . . . . . Slashing . | . . . . . . . Piercing . | . . . . . . . Highest Corruption . | . . . . . . . Average Corruption . | . . . . . . . Corruption Purged . | . . . . . . . Corruption Blocked . | . . . . . . . Overload Shots . | . . . . . . . Overflow Damage . | . . . . . . . Projectiles . | . . . . . . . Explosions . | . . . . . . . Melee . | . . . . . . . Knockbacks . | . . . . . . . Impact . | . . . . . . . Kinetic . | . . . . . . . Secondary . | . . . . . . . Self-Inflicted Damage . | . . . . . . . Shots . | . . . . . . . Rammed . | . . . . . . . Targets Rammed . | . . . . . . . Kicked . | . . . . . . . Crushed . | . . . . . . . Highest Temperature 150 | . . . . . 36 150 Average Temperature 42 | . . . . . 17 44 Received Heat Transfer 198 | . . . . . . 198 Siege Activations . | . . . . . . . Robots Corrupted . | . . . . . . . Combat Hostiles . | . . . . . . . Parts Fried . | . . . . . . . Impact Corruptions . | . . . . . . . Robots Melted . | . . . . . . . Combat Hostiles . | . . . . . . . Parts Melted . | . . . . . . . Heat Transferred 668 | . . . . . 37 631 Parts Sabotaged . | . . . . . . . Parts Stolen . | . . . . . . . Parts Stripped . | . . . . . . . Power Chain Reactions . | . . . . . . . Alert | -11 -10 -9 -9 -9 -8 -8 ------- Run | Yrd Mat Mat Min Exi Min Mat Peak Influence 140 | . 70 29 10 . 140 79 Initial 54 | . . 29 10 . . 54 Average 38 | . 10 29 10 . 124 44 Maximum Alert Level . | . . . . . . . Low Security (%) 100 | 100 100 100 100 . 100 100 Level 1 . | . . . . . . . Level 2 . | . . . . . . . Level 3 . | . . . . . . . Level 4 . | . . . . . . . Level 5 . | . . . . . . . High Security . | . . . . . . . Max Security . | . . . . . . . Squads Dispatched 5 | . . 1 . . . 4 Investigation . | . . . . . . . Extermination . | . . . . . . . Reinforcement 5 | . . 1 . . . 4 Assault . | . . . . . . . Garrison . | . . . . . . . Intercept . | . . . . . . . Searches Triggered . | . . . . . . . Construction Impeded . | . . . . . . . Haulers Reinforced . | . . . . . . . Active Scanning Responses . | . . . . . . . Cargo Convoy Interrupts . | . . . . . . . Stealth | -11 -10 -9 -9 -9 -8 -8 --------- Run | Yrd Mat Mat Min Exi Min Mat Distress Signals 5 | . . 1 . . . 4 Communications Jammed . | . . . . . . . Distress Signals . | . . . . . . . Times Spotted 26 | . 3 . 1 . 7 15 Peak Tracking Total 4 | . 3 1 . . 4 4 Tactical Retreats 3 | . . . . . . 3 Traps | -11 -10 -9 -9 -9 -8 -8 ------- Run | Yrd Mat Mat Min Exi Min Mat Traps Triggered . | . . . . . . . Indirectly . | . . . . . . . Trap Hack Attempts . | . . . . . . . Triggered . | . . . . . . . Disarmed . | . . . . . . . Reprogrammed . | . . . . . . . Reused . | . . . . . . . Traps Extracted . | . . . . . . . Installed . | . . . . . . . Triggered . | . . . . . . . Machines | -11 -10 -9 -9 -9 -8 -8 ---------- Run | Yrd Mat Mat Min Exi Min Mat Machines Disabled . | . . . . . . . Max in Single Turn . | . . . . . . . Machines Repaired . | . . . . . . . Machines Dismantled . | . . . . . . . Machines Sabotaged . | . . . . . . . Overloaded Fab Kills . | . . . . . . . Hacking | -11 -10 -9 -9 -9 -8 -8 --------- Run | Yrd Mat Mat Min Exi Min Mat Machines Accessed 5 | . . 1 . 4 . . Terminals . | . . . . . . . Fabricators . | . . . . . . . Repair Stations . | . . . . . . . Recycling Units 1 | . . 1 . . . . Scanalyzers . | . . . . . . . Garrison Access . | . . . . . . . Total Hacks 42 | . . 1 . 41 . . Successful 42 | . . 1 . 41 . . Failed . | . . . . . . . Catastrophic . | . . . . . . . Database Lockouts . | . . . . . . . Manual . | . . . . . . . Terminals . | . . . . . . . Fabricators . | . . . . . . . Repair Stations . | . . . . . . . Recycling Units 1 | . . 1 . . . . Scanalyzers . | . . . . . . . Garrison Access . | . . . . . . . Terminal Hacks 41 | . . . . 41 . . Record 41 | . . . . 41 . . Fabricator Hacks . | . . . . . . . Repair Station Hacks . | . . . . . . . Recycling Unit Hacks 1 | . . 1 . . . . Report Inventory 1 | . . 1 . . . . Scanalyzer . | . . . . . . . Garrison Access Hacks . | . . . . . . . Unauthorized Hacks . | . . . . . . . Terminals . | . . . . . . . Fabricators . | . . . . . . . Repair Stations . | . . . . . . . Recycling Units . | . . . . . . . Scanalyzers . | . . . . . . . Garrison Access . | . . . . . . . Data Cores Recovered . | . . . . . . . Used . | . . . . . . . Hacking Detections . | . . . . . . . Full Trace Events . | . . . . . . . Feedback Events . | . . . . . . . Feedback Blocked . | . . . . . . . Robot Schematics Acquired . | . . . . . . . Robots Built . | . . . . . . . Authchips . | . . . . . . . Time . | . . . . . . . Total Robot Build Rating . | . . . . . . . Part Schematics Acquired . | . . . . . . . Parts Built . | . . . . . . . Authchips . | . . . . . . . Time . | . . . . . . . Total Part Build Rating . | . . . . . . . Parts Repaired . | . . . . . . . Time . | . . . . . . . Parts Recycled . | . . . . . . . Recycled Matter . | . . . . . . . Retrieved Matter . | . . . . . . . Retrieved Components . | . . . . . . . Parts Scanalyzed . | . . . . . . . Part Schematics Acquired . | . . . . . . . Parts Damaged . | . . . . . . . Bothacking | -11 -10 -9 -9 -9 -8 -8 ------------ Run | Yrd Mat Mat Min Exi Min Mat Used RIF Installer . | . . . . . . . Robots Hacked . | . . . . . . . Non-combat . | . . . . . . . Combat . | . . . . . . . Robot Hacks Applied . | . . . . . . . Relay Couplers Released . | . . . . . . . Fabnet Peak Effective % . | . . . . . . . Robots Rewired . | . . . . . . . Allies Hacked . | . . . . . . . Hacks Repelled . | . . . . . . . Allies | -11 -10 -9 -9 -9 -8 -8 -------- Run | Yrd Mat Mat Min Exi Min Mat Total Allies . | . . . . . . . Largest Group . | . . . . . . . Highest-Rated Group . | . . . . . . . Highest-Rated Ally . | . . . . . . . Total Orders . | . . . . . . . Ally Attacks . | . . . . . . . Total Damage . | . . . . . . . Kills . | . . . . . . . Allies Corrupted . | . . . . . . . Allies Melted . | . . . . . . . Intel | -11 -10 -9 -9 -9 -8 -8 ------- Run | Yrd Mat Mat Min Exi Min Mat Robot Analysis Total . | . . . . . . . Derelict Logs Recovered . | . . . . . . . Drone Launches . | . . . . . . . Drone Recoveries . | . . . . . . . Exploration | -11 -10 -9 -9 -9 -8 -8 ------------- Run | Yrd Mat Mat Min Exi Min Mat Turns Passed 2347 | 113 233 219 141 905 152 584 Spaces Moved 1700 | 95 172 170 114 755 93 301 Core 43 | 35 . . . . . 8 Treads . | . . . . . . . Legs 1605 | 60 172 170 114 755 93 241 Wheels . | . . . . . . . Hover . | . . . . . . . Flight 52 | . . . . . . 52 Fastest Speed 50 | 50 120 120 120 120 120 105 Average Speed 121 | 94 120 120 120 120 120 138 Slowest Speed 350 | 120 120 120 120 120 120 350 Overloaded Moves . | . . . . . . . Propulsion Burnouts . | . . . . . . . Robots Hopped . | . . . . . . . Cave-ins Triggered . | . . . . . . . Exploration Rate (%) 29 | 5 24 14 38 91 14 21 Regions Visited 6 Branch Regions 3 Pre-discovered Areas 1 | . . . . 1 . . Known Exits Taken . | . . . . . . . Unknown Exits Taken 6 | 1 1 1 1 1 1 . Scrap Searched . | . . . . . . . Spaces Dug . | . . . . . . . Terrain Destroyed 3 | . . . . . . 3 Melee . | . . . . . . . Projectile 3 | . . . . . . 3 AOE . | . . . . . . . Terrain Rammed . | . . . . . . . Walls Destroyed . | . . . . . . . Machines Disabled . | . . . . . . . Actions | -11 -10 -9 -9 -9 -8 -8 --------- Run | Yrd Mat Mat Min Exi Min Mat Total 1856 | 118 188 184 118 754 109 385 Wait 10 | 8 2 . . . . . Move 1694 | 94 171 169 113 754 92 301 Hop . | . . . . . . . Pick Up 35 | 10 6 8 2 . 1 8 Fast Attach 6 | . . 1 1 . . 4 Attach 23 | 6 . 2 1 . 1 13 Detach . | . . . . . . . Swap 6 | . . 2 . . 2 2 Drop 12 | . 3 2 1 . 1 5 Fire 70 | . 6 . . . 12 52 Melee . | . . . . . . . Ram . | . . . . . . . Kick . | . . . . . . . Crush . | . . . . . . . Escape Stasis . | . . . . . . . Rewire . | . . . . . . . Trap . | . . . . . . . Miscellaneous . | . . . . . . . Route ------- -11/Scrapyard -10/Materials -9/Materials -9/Mines (discovered 2 exits: [*Mat] / *Exi) -9/Exiles (discovered 2 exits: [*Min x2]) -8/Mines -8/Materials History --------- Turn | Location | Event 28 | -11/Scrapyard | Discovered new exit (range 15) 114 | -11/Scrapyard | Entered Materials 223 | -10/Materials | Discovered new exit (range 8) 305 | -10/Materials | Build established: Mutant 347 | -10/Materials | Entered another Materials area 347 | -9/Materials | Evolved 2 slots: Propulsion x2 542 | -9/Materials | Met 8R-AWN 548 | -9/Materials | Discovered new exit (range 8) 566 | -9/Materials | Entered Mines 568 | -9/Mines | Followed 8R-AWN into the Mines 628 | -9/Mines | Discovered new exit (range 15) 702 | -9/Mines | Discovered new exit (range 5) 707 | -9/Mines | Entered Exiles 745 | -9/Exiles | Welcomed by 8R-AWN 764 | -9/Exiles | Met EX-HEX 806 | -9/Exiles | Met EX-BIN 950 | -9/Exiles | Met EX-DEC 986 | -9/Exiles | Learned location of Zion (-7) 1088 | -9/Exiles | Discovered new exit (range 14) 1176 | -9/Exiles | Visited The Gauntlet 1373 | -9/Exiles | Learned about 8R-AWN's background 1400 | -9/Exiles | Discovered new exit (range 15) 1612 | -9/Exiles | Entered Mines 1627 | -8/Mines | Discovered new exit (range 10) 1764 | -8/Mines | Entered Materials 1764 | -8/Materials | Evolved 2 slots: Propulsion x1, Weapon x1 2126 | -8/Materials | Lost 5 parts (3n2w) 2232 | -8/Materials | Core integrity fell below 50% 2304 | -8/Materials | Lost 7 parts (3p1n3w) 2331 | -8/Materials | Core integrity fell below 20% 2348 | -8/Materials | Destroyed by H-61 Shepherd with Heavy Assault Cannon Last Messages --------------- Acquired 3 matter. Penetrated by Slug. Targeting Computer destroyed. Critical hit (Blast). C-17 Slicer knocked back. Knocked back. Autogun severed. Slug penetrates C-17 Slicer. C-17 Slicer knocked back. The unstable cave ceiling collapses. Knocked back. C-17 Slicer system corrupted by crushing effect. C-17 Slicer system terminally corrupted. The unstable cave ceiling collapses. Acquired Autogun. U-05 Engineer lays Concrete. Knocked back. U-05 Engineer lays Concrete. U-05 Engineer builds a Wall. Lgt. Nuclear Core destroyed. Map ----- +----------------------------------------------------+ | ????????????????????????????????????? | | ????????????????????????????????????? | | ????????????????????????????????????? | | ????????????????????????????????????? | | ????????????????????????????????????? | | ????????????????????????????????????? | | ????????????????????????????????????? | | ????????????????????????????????????? | | ????????????????????????????????????? | | ????????????????????????????????????? | | ????????????????????????????????????? | | ?#??????????????????????????????????? | | ?# ???????????????????????????????? | | ?# ??? ?????????????????????????? | | ?# ??" ?????????????????????????? | | ?# "?" #????????????????????????? | | ?# """ #????????????????????????? | | ?# ? ""#??????????????????????? | | ?# T"???????????????????????? | | ?# """ ""??????????????? ???????? | | ?# """ #??????#????????? ???????? | | ?# """ #????? #????????? ???????? | | ?# """ ###### ###??????? #??????? | | ?# """ #% # k######## ##?????? | | ?# % # # #?????? | | ?# %@ H T?????? | | ??## ### =c##u #?????? | | ???# # % ####### #?????# | | ???# /m #######?????# #???? | | ???# ### # ########### #?? | | ???# # # % # # !# #? | | ?### ### ### # # ? | | ?# # ### # + ???? | | ?# ########## # #?????? | | ?# ########## /% #?????? | | ?# / # #?????? | | ?# ########## # #?????? | | ####+###????????# # #####+# | | # #?????????########### | | ?# #????????????# ! # | | ?# #????????????# #% | | ?# #????????????# """ + ###+### | | ?# #????????????# R" # #?????? | | ?# #????????????#] """ # #?????? | | ?# #????????????# ?# #?????? | | ?# #????????????######?# #?????? | | ?# #???????????????????# #?????? | | ?######???????????????????# #?????? | | ??????????????????????????# ####### | | ??????###########?????????# # | +----------------------------------------------------+ Best States ------------- Heat Dissipation 31 Energy Generation 14 Energy Capacity 275 Matter Stores 300 Matter Capacity 300 Sight Range 16 Terrain Scan Density 10 Evasion (%) 55 Targeting Accuracy 5 Item Schematics ----------------- None Robot Schematics ------------------ None Fabricated ------------ Nothing Alien Tech Used ----------------- None Achievements -------------- Librarian Challenges ------------ None Game ------ Seed CoreArchitectRail Manual? 0 Play Time 00:31:18 Cumulative 4.5 hours Start 2024.03.03 @ 02:46:29 End 2024.03.03 @ 03:21:15 Sessions 1 Manual Loads 0 Difficulty Rogue Special Mode None Game No. 12 Rogue 12 Adventurer 0 Explorer 0 Win Type - Total 0 Types 0/0/0/0/0/0/0/0/0 Lore% 8 Gallery% 9 Achievement% 7 Wizard Run 0 Options --------- Layout 1 ASCII 0 Keyboard 0 Movement Mouse Keybinds 0 Fullscreen 1 Font 24/Terminus Map View 25x17 Zoom Use 76% Tactical HUD 0 Map Filters NONE Filters NONE Steam 1 RUN: 643d2b32-0f80-40bc-a475-1337a013d9f8